[Event "*** Titled Tuesday 3|2 Blitz"]
[Site "Chess.com"]
[Date "2017.03.07"]
[Round "1"]
[White "SCIM"]
[Black "Izoria123"]
[Result "0-1"]
[WhiteElo "2289"]
[BlackElo "2565"]
[TimeControl "180+2"]
[EndTime "13:06:26 PST"]
[Termination "Izoria123 won by checkmate"]

1. d4 {[%clk 0:03:02]} 1... d6 {[%clk 0:02:59.7]} 2. c4 {[%clk 0:03:01.4]} 2...
e5 {[%clk 0:02:59.7]} 3. Nc3 {[%clk 0:03:01.7]} 3... exd4 {[%clk 0:03:00.3]} 4.
Qxd4 {[%clk 0:03:01.4]} 4... Nc6 {[%clk 0:03:02.2]} 5. Qd2 {[%clk 0:03:02.3]}
5... Nf6 {[%clk 0:03:01.6]} 6. b3 {[%clk 0:03:02.2]} 6... Be6 {[%clk 0:02:53.9]}
7. Bb2 {[%clk 0:02:59.5]} 7... d5 {[%clk 0:02:53.4]} 8. cxd5 {[%clk 0:02:54.5]}
8... Nxd5 {[%clk 0:02:53.5]} 9. e4 {[%clk 0:02:29.9]} 9... Nxc3 {[%clk
0:02:52.8]} 10. Bxc3 {[%clk 0:02:29.1]} 10... Qxd2+ {[%clk 0:02:52.9]} 11. Bxd2
{[%clk 0:02:29.1]} 11... O-O-O {[%clk 0:02:51.2]} 12. Nf3 {[%clk 0:02:24.4]}
12... Nb4 {[%clk 0:02:44.5]} 13. Rc1 {[%clk 0:01:57.3]} 13... Nxa2 {[%clk
0:02:44.1]} 14. Ra1 {[%clk 0:01:57.5]} 14... Bxb3 {[%clk 0:02:41.5]} 15. Be2
{[%clk 0:01:55]} 15... Rxd2 {[%clk 0:01:23]} 16. Kxd2 {[%clk 0:01:13.8]} 16...
Bb4+ {[%clk 0:01:24.4]} 17. Ke3 {[%clk 0:01:13.1]} 17... Bc5+ {[%clk 0:01:25.7]}
18. Kf4 {[%clk 0:01:07.6]} 18... Nc3 {[%clk 0:01:24.7]} 19. Bd3 {[%clk
0:00:55.3]} 19... Rd8 {[%clk 0:01:25.8]} 20. Bb1 {[%clk 0:00:41.9]} 20... Ne2+
{[%clk 0:01:24.8]} 21. Kg4 {[%clk 0:00:39.8]} 21... Be6+ {[%clk 0:01:25]} 22.
Kh5 {[%clk 0:00:34.9]} 22... Nf4+ {[%clk 0:01:25.4]} 23. Kg5 {[%clk 0:00:34.3]}
23... Nxg2 {[%clk 0:01:24.5]} 24. e5 {[%clk 0:00:14]} 24... Be7+ {[%clk
0:01:23]} 25. Kh5 {[%clk 0:00:14.8]} 25... Nf4# {[%clk 0:01:24.4]} 0-1

[Event "*** Titled Tuesday 3|2 Blitz"]
[Site "Chess.com"]
[Date "2017.03.07"]
[Round "1"]
[White "Vamostodorecto"]
[Black "sergiochess83"]
[Result "1-0"]
[WhiteElo "2393"]
[BlackElo "2687"]
[TimeControl "180+2"]
[EndTime "13:06:30 PST"]
[Termination "Vamostodorecto won on time"]

1. d4 {[%clk 0:03:01.2]} 1... Nf6 {[%clk 0:02:58.4]} 2. c4 {[%clk 0:03:02.3]}
2... g6 {[%clk 0:02:59.5]} 3. Nc3 {[%clk 0:03:03.7]} 3... d5 {[%clk 0:03:00.7]}
4. Bg5 {[%clk 0:03:04.4]} 4... Ne4 {[%clk 0:03:00.7]} 5. Nxe4 {[%clk 0:03:02.7]}
5... dxe4 {[%clk 0:03:01.4]} 6. Qd2 {[%clk 0:03:03]} 6... Bg7 {[%clk 0:03:02.2]}
7. e3 {[%clk 0:03:04]} 7... c5 {[%clk 0:02:59.8]} 8. d5 {[%clk 0:03:05.2]} 8...
Nd7 {[%clk 0:02:51.3]} 9. Ne2 {[%clk 0:03:05.7]} 9... Nf6 {[%clk 0:02:48.7]} 10.
Nc3 {[%clk 0:03:02.8]} 10... Bf5 {[%clk 0:02:48.2]} 11. h3 {[%clk 0:02:59.3]}
11... h5 {[%clk 0:02:42.8]} 12. Be2 {[%clk 0:02:58.4]} 12... Qd7 {[%clk
0:02:40.2]} 13. O-O-O {[%clk 0:02:54.1]} 13... O-O-O {[%clk 0:02:36.6]} 14. Nb5
{[%clk 0:02:42.6]} 14... a6 {[%clk 0:02:34.7]} 15. Qa5 {[%clk 0:02:42.6]} 15...
Ne8 {[%clk 0:02:05.3]} 16. Na7+ {[%clk 0:01:33.6]} 16... Kb8 {[%clk 0:02:05.9]}
17. Nc6+ {[%clk 0:01:31.6]} 17... Kc8 {[%clk 0:02:02.6]} 18. Nxe7+ {[%clk
0:01:26.8]} 18... Kb8 {[%clk 0:01:55.1]} 19. Nc6+ {[%clk 0:01:15.1]} 1-0

[Event "*** Titled Tuesday 3|2 Blitz"]
[Site "Chess.com"]
[Date "2017.03.07"]
[Round "1"]
[White "rithwik2002"]
[Black "LawrenceTrent"]
[Result "1-0"]
[WhiteElo "1807"]
[BlackElo "2369"]
[TimeControl "180+2"]
[EndTime "13:06:46 PST"]
[Termination "rithwik2002 won by resignation"]

1. d4 {[%clk 0:03:00]} 1... Nf6 {[%clk 0:03:00.5]} 2. Bf4 {[%clk 0:02:53]} 2...
c5 {[%clk 0:02:58.4]} 3. e3 {[%clk 0:02:46.2]} 3... Nc6 {[%clk 0:02:59]} 4. Nf3
{[%clk 0:02:35.9]} 4... e6 {[%clk 0:02:56.8]} 5. h3 {[%clk 0:02:29.6]} 5... Be7
{[%clk 0:02:57.3]} 6. c3 {[%clk 0:02:28.2]} 6... O-O {[%clk 0:02:58.4]} 7. Nbd2
{[%clk 0:02:27.9]} 7... b6 {[%clk 0:02:59.7]} 8. Bd3 {[%clk 0:02:27.6]} 8... Bb7
{[%clk 0:03:01.1]} 9. Qe2 {[%clk 0:02:28.9]} 9... Rc8 {[%clk 0:02:57]} 10. O-O
{[%clk 0:02:25]} 10... d5 {[%clk 0:02:54.3]} 11. Rad1 {[%clk 0:02:01.4]} 11...
Bd6 {[%clk 0:02:50.9]} 12. Bxd6 {[%clk 0:02:01.1]} 12... Qxd6 {[%clk 0:02:51.9]}
13. e4 {[%clk 0:02:02.2]} 13... dxe4 {[%clk 0:02:33.4]} 14. Nxe4 {[%clk
0:01:51.1]} 14... Nxe4 {[%clk 0:02:34.1]} 15. Qxe4 {[%clk 0:01:48.6]} 15... g6
{[%clk 0:02:35.6]} 16. Qh4 {[%clk 0:01:48.8]} 16... Qe7 {[%clk 0:02:22.1]} 17.
Ng5 {[%clk 0:01:11.9]} 17... f6 {[%clk 0:02:10.9]} 18. Nxe6 {[%clk 0:01:09.1]}
18... Qxe6 {[%clk 0:02:02]} 19. d5 {[%clk 0:01:06.6]} 19... Qf7 {[%clk
0:01:57.2]} 20. dxc6 {[%clk 0:01:06.7]} 20... g5 {[%clk 0:01:34.1]} 21. Qxh7+
{[%clk 0:00:37.3]} 21... Qxh7 {[%clk 0:01:34.5]} 22. Bxh7+ {[%clk 0:00:38.1]}
22... Kxh7 {[%clk 0:01:35.3]} 23. Rd7+ {[%clk 0:00:36]} 23... Kg6 {[%clk
0:01:36.6]} 24. cxb7 {[%clk 0:00:36.7]} 24... Rb8 {[%clk 0:01:37.9]} 25. Re1
{[%clk 0:00:30.8]} 25... Rf7 {[%clk 0:01:39.1]} 26. Ree7 {[%clk 0:00:30.7]}
26... Rxe7 {[%clk 0:01:33.7]} 27. Rxe7 {[%clk 0:00:31.7]} 27... f5 {[%clk
0:01:35.2]} 28. g4 {[%clk 0:00:30.3]} 28... fxg4 {[%clk 0:01:34.1]} 29. hxg4
{[%clk 0:00:30.9]} 29... Kf6 {[%clk 0:01:36]} 30. Rc7 {[%clk 0:00:31.8]} 30...
Ke5 {[%clk 0:01:36]} 31. Kg2 {[%clk 0:00:32.7]} 31... Kf4 {[%clk 0:01:36]} 32.
f3 {[%clk 0:00:34.2]} 32... a5 {[%clk 0:01:34.8]} 33. Re7 {[%clk 0:00:34.1]} 1-0

[Event "*** Titled Tuesday 3|2 Blitz"]
[Site "Chess.com"]
[Date "2017.03.07"]
[Round "1"]
[White "platy3"]
[Black "macko06"]
[Result "1-0"]
[WhiteElo "2588"]
[BlackElo "2316"]
[TimeControl "180+2"]
[EndTime "13:06:52 PST"]
[Termination "platy3 won by resignation"]

1. e4 {[%clk 0:03:02]} 1... e5 {[%clk 0:03:00.2]} 2. Nf3 {[%clk 0:03:00.5]} 2...
Nc6 {[%clk 0:03:01]} 3. Bb5 {[%clk 0:03:01.4]} 3... a6 {[%clk 0:03:01.8]} 4. Ba4
{[%clk 0:03:02.5]} 4... Nf6 {[%clk 0:03:02.3]} 5. O-O {[%clk 0:03:03.5]} 5...
Be7 {[%clk 0:02:59.2]} 6. Re1 {[%clk 0:03:04.5]} 6... b5 {[%clk 0:02:59.9]} 7.
Bb3 {[%clk 0:03:06]} 7... d6 {[%clk 0:03:01.4]} 8. c3 {[%clk 0:03:07.2]} 8...
O-O {[%clk 0:03:02.5]} 9. h3 {[%clk 0:03:08.7]} 9... Bb7 {[%clk 0:03:03.7]} 10.
d4 {[%clk 0:03:09.5]} 10... Nd7 {[%clk 0:03:05]} 11. Nbd2 {[%clk 0:03:10.4]}
11... exd4 {[%clk 0:03:05.6]} 12. cxd4 {[%clk 0:03:11.3]} 12... Bf6 {[%clk
0:03:06.2]} 13. Nf1 {[%clk 0:03:12.2]} 13... Na5 {[%clk 0:03:07.4]} 14. Bc2
{[%clk 0:03:12.6]} 14... Re8 {[%clk 0:03:08.7]} 15. Ng3 {[%clk 0:03:13.6]} 15...
g6 {[%clk 0:03:08.9]} 16. Bh6 {[%clk 0:03:14.5]} 16... Nc4 {[%clk 0:03:02.4]}
17. a4 {[%clk 0:03:13.7]} 17... Nxb2 {[%clk 0:02:58.7]} 18. Qb1 {[%clk
0:03:13.8]} 18... Nc4 {[%clk 0:02:59.5]} 19. axb5 {[%clk 0:03:14.7]} 19... axb5
{[%clk 0:03:00.5]} 20. Qxb5 {[%clk 0:03:16]} 20... Ncb6 {[%clk 0:02:58.5]} 21.
Rad1 {[%clk 0:03:17.4]} 21... Ba6 {[%clk 0:02:45.8]} 22. Qb1 {[%clk 0:03:04.9]}
22... Rb8 {[%clk 0:02:36.3]} 23. Qc1 {[%clk 0:03:01.1]} 23... Qc8 {[%clk
0:02:25.1]} 24. Qf4 {[%clk 0:02:56.3]} 24... Bc4 {[%clk 0:02:12.2]} 25. h4
{[%clk 0:02:47.1]} 25... c5 {[%clk 0:02:06.4]} 26. e5 {[%clk 0:02:42.6]} 26...
Nd5 {[%clk 0:01:48.3]} 27. Qg4 {[%clk 0:02:31.1]} 27... Nc3 {[%clk 0:00:47.5]}
28. exf6 {[%clk 0:02:06.3]} 28... Nxd1 {[%clk 0:00:48.6]} 29. Rxd1 {[%clk
0:02:02.7]} 29... Nxf6 {[%clk 0:00:49]} 30. Qg5 {[%clk 0:01:55.2]} 30... Qe6
{[%clk 0:00:35]} 31. Re1 {[%clk 0:01:28.6]} 1-0

[Event "*** Titled Tuesday 3|2 Blitz"]
[Site "Chess.com"]
[Date "2017.03.07"]
[Round "1"]
[White "David_Klein"]
[Black "Wolverine_master"]
[Result "1-0"]
[WhiteElo "2429"]
[BlackElo "1943"]
[TimeControl "180+2"]
[EndTime "13:06:52 PST"]
[Termination "David_Klein won on time"]

1. e4 {[%clk 0:03:02]} 1... c5 {[%clk 0:02:53.4]} 2. Nf3 {[%clk 0:03:02.8]} 2...
d6 {[%clk 0:02:54.6]} 3. d4 {[%clk 0:03:03.8]} 3... cxd4 {[%clk 0:02:56.5]} 4.
Nxd4 {[%clk 0:03:05.2]} 4... Nf6 {[%clk 0:02:57.8]} 5. Nc3 {[%clk 0:03:06.7]}
5... a6 {[%clk 0:02:59.2]} 6. h3 {[%clk 0:03:07.3]} 6... e5 {[%clk 0:02:55.4]}
7. Nde2 {[%clk 0:03:07.2]} 7... Be6 {[%clk 0:02:56.2]} 8. g4 {[%clk 0:03:08.2]}
8... Be7 {[%clk 0:02:56.8]} 9. f4 {[%clk 0:03:09.2]} 9... h6 {[%clk 0:02:29.7]}
10. f5 {[%clk 0:03:09.1]} 10... Bd7 {[%clk 0:02:27.4]} 11. Bg2 {[%clk
0:03:10.3]} 11... Nc6 {[%clk 0:02:27.6]} 12. Be3 {[%clk 0:03:10]} 12... Nh7
{[%clk 0:02:18.7]} 13. O-O {[%clk 0:02:58.7]} 13... Nf6 {[%clk 0:02:09.9]} 14.
Bf3 {[%clk 0:02:57.5]} 14... O-O {[%clk 0:02:10.1]} 15. Kg2 {[%clk 0:02:56.9]}
15... Re8 {[%clk 0:02:10.6]} 16. Rh1 {[%clk 0:02:56.2]} 16... Bf8 {[%clk
0:02:11.4]} 17. h4 {[%clk 0:02:56.9]} 17... g6 {[%clk 0:02:00]} 18. g5 {[%clk
0:02:55.6]} 18... Nh7 {[%clk 0:01:44.9]} 19. f6 {[%clk 0:02:45.8]} 19... h5
{[%clk 0:01:44.8]} 20. Nd5 {[%clk 0:02:45]} 20... Be6 {[%clk 0:01:42.9]} 21. c3
{[%clk 0:02:46]} 21... Bxd5 {[%clk 0:01:36.4]} 22. Qxd5 {[%clk 0:02:47.9]} 22...
Qa5 {[%clk 0:01:36.5]} 23. Rad1 {[%clk 0:02:46.4]} 23... Qb5 {[%clk 0:01:16.3]}
24. Qb3 {[%clk 0:02:45.2]} 24... Qxb3 {[%clk 0:01:08.7]} 25. axb3 {[%clk
0:02:47.1]} 25... Na5 {[%clk 0:01:10.1]} 26. Nc1 {[%clk 0:02:47.1]} 26... b5
{[%clk 0:01:07.3]} 27. Rd5 {[%clk 0:02:46.9]} 27... Rab8 {[%clk 0:01:06.9]} 28.
Rhd1 {[%clk 0:02:47.5]} 28... Rec8 {[%clk 0:00:57.3]} 29. Be2 {[%clk 0:02:48.3]}
29... Nb7 {[%clk 0:00:56.2]} 30. b4 {[%clk 0:02:49]} 30... Nd8 {[%clk 0:00:56]}
31. Nb3 {[%clk 0:02:50]} 31... Ne6 {[%clk 0:00:56.6]} 32. Ra1 {[%clk 0:02:48]}
32... Nc7 {[%clk 0:00:57.3]} 33. Rd2 {[%clk 0:02:46.8]} 33... Rd8 {[%clk
0:00:58.1]} 34. Bf3 {[%clk 0:02:46.6]} 34... Rd7 {[%clk 0:00:58.3]} 35. Na5
{[%clk 0:02:47.7]} 35... Rbd8 {[%clk 0:00:58.5]} 36. Nc6 {[%clk 0:02:48.7]}
36... Re8 {[%clk 0:00:50.8]} 37. Kf2 {[%clk 0:02:49.2]} 37... Ne6 {[%clk
0:00:45.4]} 38. Rxa6 {[%clk 0:02:49.1]} 38... Nd8 {[%clk 0:00:46]} 39. Nxd8
{[%clk 0:02:48.3]} 39... Rexd8 {[%clk 0:00:47.9]} 40. Rd5 {[%clk 0:02:49.4]}
40... Rb7 {[%clk 0:00:42.4]} 41. Be2 {[%clk 0:02:50]} 41... Rdb8 {[%clk
0:00:40.2]} 42. Ke1 {[%clk 0:02:51]} 42... Kh8 {[%clk 0:00:23.4]} 43. Kd2 {[%clk
0:02:51.6]} 43... Kg8 {[%clk 0:00:21]} 44. Kc2 {[%clk 0:02:52.6]} 44... Kh8
{[%clk 0:00:18.3]} 45. Kb3 {[%clk 0:02:50.6]} 45... Kg8 {[%clk 0:00:19.5]} 46.
Ra5 {[%clk 0:02:48.7]} 1-0

[Event "*** Titled Tuesday 3|2 Blitz"]
[Site "Chess.com"]
[Date "2017.03.07"]
[Round "1"]
[White "Incognito_Knight"]
[Black "Dlugy"]
[Result "1/2-1/2"]
[WhiteElo "2371"]
[BlackElo "2670"]
[TimeControl "180+2"]
[EndTime "13:06:53 PST"]
[Termination "Game drawn by repetition"]

1. e4 {[%clk 0:02:59]} 1... c5 {[%clk 0:03:00.8]} 2. Nf3 {[%clk 0:02:59.8]} 2...
d6 {[%clk 0:03:01.7]} 3. d4 {[%clk 0:03:00.9]} 3... cxd4 {[%clk 0:03:03.3]} 4.
Nxd4 {[%clk 0:03:02.8]} 4... Nf6 {[%clk 0:03:04.8]} 5. f3 {[%clk 0:03:03.5]}
5... Nc6 {[%clk 0:03:06.2]} 6. c4 {[%clk 0:03:04.3]} 6... g6 {[%clk 0:03:07.1]}
7. Nc3 {[%clk 0:03:04.7]} 7... Bg7 {[%clk 0:03:08.3]} 8. Be3 {[%clk 0:03:05.5]}
8... O-O {[%clk 0:03:08.4]} 9. Qd2 {[%clk 0:03:06.8]} 9... Nxd4 {[%clk
0:03:09.6]} 10. Bxd4 {[%clk 0:03:08.7]} 10... a5 {[%clk 0:03:08]} 11. b3 {[%clk
0:03:08.2]} 11... Bd7 {[%clk 0:03:09]} 12. Be2 {[%clk 0:03:07.1]} 12... Bc6
{[%clk 0:03:10.3]} 13. O-O {[%clk 0:03:07.1]} 13... Nd7 {[%clk 0:03:11.6]} 14.
Be3 {[%clk 0:03:07.4]} 14... Nc5 {[%clk 0:03:09.3]} 15. Rfc1 {[%clk 0:03:07.4]}
15... Qb6 {[%clk 0:03:06.9]} 16. Rab1 {[%clk 0:03:07.6]} 16... Rfc8 {[%clk
0:03:07.4]} 17. Rc2 {[%clk 0:03:03.6]} 17... Qd8 {[%clk 0:03:08.4]} 18. Bf1
{[%clk 0:02:55.1]} 18... h5 {[%clk 0:03:09.1]} 19. Qf2 {[%clk 0:02:49.9]} 19...
Kh7 {[%clk 0:03:05.9]} 20. a3 {[%clk 0:02:49.4]} 20... Qh8 {[%clk 0:03:05]} 21.
Nd5 {[%clk 0:02:37.3]} 21... Bxd5 {[%clk 0:03:05.2]} 22. exd5 {[%clk 0:02:38.8]}
22... a4 {[%clk 0:03:02.3]} 23. b4 {[%clk 0:02:36.9]} 23... Nb3 {[%clk
0:03:03.2]} 24. Rd1 {[%clk 0:02:31.9]} 24... Na1 {[%clk 0:02:44.4]} 25. Ra2
{[%clk 0:02:17.2]} 25... Nb3 {[%clk 0:02:43.7]} 26. Rc2 {[%clk 0:02:18]} 26...
Bf6 {[%clk 0:02:41.8]} 27. c5 {[%clk 0:02:13.8]} 27... Qe8 {[%clk 0:02:04.9]}
28. Bd3 {[%clk 0:01:55.9]} 28... Qd7 {[%clk 0:02:01.6]} 29. Be4 {[%clk
0:01:52.6]} 29... Qb5 {[%clk 0:01:56.2]} 30. c6 {[%clk 0:01:48.4]} 30... Kg7
{[%clk 0:01:41.3]} 31. f4 {[%clk 0:01:36.1]} 31... Na1 {[%clk 0:01:22.5]} 32.
Rcc1 {[%clk 0:01:25.7]} 32... Nb3 {[%clk 0:01:22.8]} 33. Rc2 {[%clk 0:01:26.5]}
33... Na1 {[%clk 0:01:24]} 34. Re2 {[%clk 0:01:14]} 34... Nb3 {[%clk 0:01:10.8]}
35. Rc2 {[%clk 0:01:01.3]} 35... Na1 {[%clk 0:01:11.1]} 36. Rcc1 {[%clk
0:01:02.2]} 36... Nb3 {[%clk 0:01:12.2]} 37. Rc2 {[%clk 0:01:03.5]} 37... Na1
{[%clk 0:01:13.4]} 1/2-1/2

[Event "*** Titled Tuesday 3|2 Blitz"]
[Site "Chess.com"]
[Date "2017.03.07"]
[Round "1"]
[White "TenisMaster"]
[Black "kikydu96"]
[Result "1-0"]
[WhiteElo "2605"]
[BlackElo "2310"]
[TimeControl "180+2"]
[EndTime "13:06:53 PST"]
[Termination "TenisMaster won by resignation"]

1. e4 {[%clk 0:03:02]} 1... c5 {[%clk 0:03:00.1]} 2. Nf3 {[%clk 0:03:02.3]} 2...
d6 {[%clk 0:02:56.5]} 3. d4 {[%clk 0:03:02.1]} 3... cxd4 {[%clk 0:02:50.1]} 4.
Nxd4 {[%clk 0:03:04]} 4... Nf6 {[%clk 0:02:50.9]} 5. Nc3 {[%clk 0:03:05.3]} 5...
a6 {[%clk 0:02:52.2]} 6. Be3 {[%clk 0:02:55.4]} 6... e5 {[%clk 0:02:48.6]} 7.
Nb3 {[%clk 0:02:50.6]} 7... Be7 {[%clk 0:02:46.8]} 8. h3 {[%clk 0:02:49.3]} 8...
Be6 {[%clk 0:02:33.2]} 9. f4 {[%clk 0:02:48.9]} 9... b5 {[%clk 0:02:20.1]} 10.
f5 {[%clk 0:02:12.7]} 10... Bd7 {[%clk 0:02:10.7]} 11. Qf3 {[%clk 0:02:10.6]}
11... Bc6 {[%clk 0:01:58.3]} 12. O-O-O {[%clk 0:02:11.2]} 12... b4 {[%clk
0:01:59.2]} 13. Nd5 {[%clk 0:02:11.4]} 13... Bxd5 {[%clk 0:01:42.6]} 14. exd5
{[%clk 0:02:12.2]} 14... a5 {[%clk 0:01:43.2]} 15. Kb1 {[%clk 0:02:11.1]} 15...
a4 {[%clk 0:01:37.9]} 16. Bb5+ {[%clk 0:02:10.9]} 16... Kf8 {[%clk 0:01:29.4]}
17. Nd2 {[%clk 0:02:11.6]} 17... Qa5 {[%clk 0:01:14.6]} 18. Bc4 {[%clk
0:02:01.2]} 18... Nbd7 {[%clk 0:01:10]} 19. g4 {[%clk 0:02:01.9]} 19... e4
{[%clk 0:00:40.8]} 20. Qe2 {[%clk 0:02:01.8]} 20... Nxd5 {[%clk 0:00:22.6]} 21.
Nxe4 {[%clk 0:02:00.7]} 21... Nc3+ {[%clk 0:00:23.4]} 22. bxc3 {[%clk
0:01:56.8]} 22... bxc3 {[%clk 0:00:24.5]} 23. Ka1 {[%clk 0:01:57.6]} 23... Rb8
{[%clk 0:00:12.1]} 24. Rb1 {[%clk 0:01:56.4]} 24... d5 {[%clk 0:00:11.8]} 25.
Rxb8+ {[%clk 0:01:42]} 25... Nxb8 {[%clk 0:00:13.7]} 26. Rb1 {[%clk 0:01:42.7]}
26... Nd7 {[%clk 0:00:06.8]} 27. f6 {[%clk 0:01:43.1]} 27... gxf6 {[%clk
0:00:06.2]} 28. Bh6+ {[%clk 0:01:41.5]} 28... Kg8 {[%clk 0:00:07.6]} 29. Nxf6+
{[%clk 0:01:35.1]} 29... Bxf6 {[%clk 0:00:06.2]} 30. Qe8+ {[%clk 0:01:35.4]} 1-0

[Event "*** Titled Tuesday 3|2 Blitz"]
[Site "Chess.com"]
[Date "2017.03.07"]
[Round "1"]
[White "rubhani"]
[Black "Keranke"]
[Result "0-1"]
[WhiteElo "2394"]
[BlackElo "2724"]
[TimeControl "180+2"]
[EndTime "13:07:01 PST"]
[Termination "Keranke won by resignation"]

1. e4 {[%clk 0:03:02]} 1... g6 {[%clk 0:03:00.2]} 2. d4 {[%clk 0:03:02.4]} 2...
Bg7 {[%clk 0:03:01.6]} 3. Nc3 {[%clk 0:03:03.3]} 3... d6 {[%clk 0:03:02.9]} 4.
Be3 {[%clk 0:03:04.3]} 4... a6 {[%clk 0:03:04.3]} 5. f3 {[%clk 0:03:05.3]} 5...
b5 {[%clk 0:03:05.6]} 6. Qd2 {[%clk 0:03:06]} 6... Nd7 {[%clk 0:03:06.9]} 7. h4
{[%clk 0:03:07.3]} 7... h6 {[%clk 0:03:07.8]} 8. g4 {[%clk 0:03:07.7]} 8... Bb7
{[%clk 0:03:07.7]} 9. Nh3 {[%clk 0:03:05.5]} 9... c5 {[%clk 0:03:05.3]} 10. dxc5
{[%clk 0:02:37.2]} 10... Nxc5 {[%clk 0:03:05.4]} 11. Bd4 {[%clk 0:02:36.1]}
11... Bxd4 {[%clk 0:02:32]} 12. Qxd4 {[%clk 0:02:36.4]} 12... e5 {[%clk
0:02:33.5]} 13. Qd2 {[%clk 0:02:24.4]} 13... Qxh4+ {[%clk 0:02:32.3]} 14. Nf2
{[%clk 0:02:25.3]} 14... Qe7 {[%clk 0:02:23.6]} 15. b4 {[%clk 0:02:14.5]} 15...
Ne6 {[%clk 0:02:23.4]} 16. a4 {[%clk 0:02:14.4]} 16... Nd4 {[%clk 0:02:19.4]}
17. Rh3 {[%clk 0:01:59]} 17... bxa4 {[%clk 0:02:14.5]} 18. Bc4 {[%clk
0:01:45.2]} 18... Rc8 {[%clk 0:02:11.6]} 19. Bd5 {[%clk 0:01:29.4]} 19... Nf6
{[%clk 0:01:59.7]} 20. Bxb7 {[%clk 0:01:18.8]} 20... Qxb7 {[%clk 0:02:01.6]} 21.
Rxa4 {[%clk 0:01:16.2]} 21... Rxc3 {[%clk 0:01:19.5]} 22. Qxc3 {[%clk
0:01:15.6]} 22... Qb5 {[%clk 0:01:20.5]} 23. Nd3 {[%clk 0:00:15.7]} 23... Qxa4
{[%clk 0:01:20.2]} 24. g5 {[%clk 0:00:16.6]} 24... Qd7 {[%clk 0:01:08.7]} 25.
gxf6 {[%clk 0:00:12]} 25... Qxh3 {[%clk 0:01:08.5]} 26. Qc7 {[%clk 0:00:13.1]}
26... O-O {[%clk 0:01:08]} 0-1

[Event "*** Titled Tuesday 3|2 Blitz"]
[Site "Chess.com"]
[Date "2017.03.07"]
[Round "1"]
[White "rasmussvane"]
[Black "silverback96"]
[Result "1-0"]
[WhiteElo "2459"]
[BlackElo "2052"]
[TimeControl "180+2"]
[EndTime "13:07:09 PST"]
[Termination "rasmussvane won by resignation"]

1. Nf3 {[%clk 0:03:02]} 1... c5 {[%clk 0:03:00.5]} 2. c4 {[%clk 0:03:02.9]} 2...
Nc6 {[%clk 0:03:01.9]} 3. Nc3 {[%clk 0:03:03.8]} 3... e5 {[%clk 0:03:00.6]} 4.
e3 {[%clk 0:03:04.3]} 4... Nf6 {[%clk 0:02:59.4]} 5. Be2 {[%clk 0:03:01.1]} 5...
Be7 {[%clk 0:02:40.1]} 6. d4 {[%clk 0:02:54.8]} 6... cxd4 {[%clk 0:02:40.5]} 7.
exd4 {[%clk 0:02:55.9]} 7... e4 {[%clk 0:02:41.7]} 8. Ng5 {[%clk 0:02:50.2]}
8... Qa5 {[%clk 0:02:01.7]} 9. O-O {[%clk 0:02:48.5]} 9... Qf5 {[%clk
0:01:42.6]} 10. d5 {[%clk 0:02:14.3]} 10... Ne5 {[%clk 0:01:37.4]} 11. Qd4
{[%clk 0:02:09.1]} 11... O-O {[%clk 0:00:49.6]} 12. Ngxe4 {[%clk 0:02:08.9]}
12... Nxe4 {[%clk 0:00:51.5]} 13. Nxe4 {[%clk 0:02:05.1]} 13... Re8 {[%clk
0:00:45.7]} 14. Be3 {[%clk 0:01:32.5]} 14... Bb4 {[%clk 0:00:34.4]} 15. Ng3
{[%clk 0:01:18.5]} 15... Qg6 {[%clk 0:00:32.4]} 16. c5 {[%clk 0:01:18.2]} 16...
d6 {[%clk 0:00:32.4]} 17. Qxb4 {[%clk 0:01:18.6]} 17... dxc5 {[%clk 0:00:32.6]}
18. Qxc5 {[%clk 0:01:19.8]} 18... Bd7 {[%clk 0:00:32.7]} 19. Rac1 {[%clk
0:01:18.2]} 19... f5 {[%clk 0:00:31.2]} 20. Bh5 {[%clk 0:01:16.9]} 20... Qf6
{[%clk 0:00:29.9]} 21. Bxe8 {[%clk 0:01:15.4]} 21... Rxe8 {[%clk 0:00:31.8]} 22.
Qd4 {[%clk 0:01:10]} 22... g5 {[%clk 0:00:27.8]} 23. f4 {[%clk 0:00:54.5]} 23...
Qh6 {[%clk 0:00:25]} 24. fxe5 {[%clk 0:00:54]} 24... f4 {[%clk 0:00:26.9]} 25.
Bxf4 {[%clk 0:00:55]} 25... gxf4 {[%clk 0:00:28.8]} 26. Qxf4 {[%clk 0:00:56.2]}
26... Qg7 {[%clk 0:00:29.7]} 27. e6 {[%clk 0:00:57.2]} 27... Bb5 {[%clk
0:00:29.9]} 28. Qf7+ {[%clk 0:00:58.4]} 1-0

[Event "*** Titled Tuesday 3|2 Blitz"]
[Site "Chess.com"]
[Date "2017.03.07"]
[Round "1"]
[White "asms9699"]
[Black "Rbrrt"]
[Result "1-0"]
[WhiteElo "2445"]
[BlackElo "2016"]
[TimeControl "180+2"]
[EndTime "13:07:46 PST"]
[Termination "asms9699 won by resignation"]

1. c4 {[%clk 0:03:02]} 1... c6 {[%clk 0:03:00.7]} 2. g3 {[%clk 0:03:02.1]} 2...
Nf6 {[%clk 0:03:01.2]} 3. Bg2 {[%clk 0:03:01.9]} 3... d5 {[%clk 0:03:02.5]} 4.
Nf3 {[%clk 0:03:02.8]} 4... Bg4 {[%clk 0:02:58.1]} 5. cxd5 {[%clk 0:03:02.8]}
5... cxd5 {[%clk 0:02:59.1]} 6. Ne5 {[%clk 0:03:02.3]} 6... Bc8 {[%clk
0:02:59.5]} 7. O-O {[%clk 0:03:01.9]} 7... e6 {[%clk 0:02:58.7]} 8. d4 {[%clk
0:02:57.9]} 8... Be7 {[%clk 0:02:59.2]} 9. Nc3 {[%clk 0:02:58.1]} 9... O-O
{[%clk 0:03:00.2]} 10. Bg5 {[%clk 0:02:55.3]} 10... Nbd7 {[%clk 0:03:00.5]} 11.
Rc1 {[%clk 0:02:51.3]} 11... a6 {[%clk 0:03:01.1]} 12. Qb3 {[%clk 0:02:43.9]}
12... Nxe5 {[%clk 0:02:45.3]} 13. dxe5 {[%clk 0:02:43.7]} 13... Nd7 {[%clk
0:02:46.6]} 14. Bxe7 {[%clk 0:02:34]} 14... Qxe7 {[%clk 0:02:48.5]} 15. e4
{[%clk 0:02:28.8]} 15... dxe4 {[%clk 0:02:44]} 16. Nxe4 {[%clk 0:02:26.1]} 16...
Nxe5 {[%clk 0:02:44.3]} 17. Rfd1 {[%clk 0:02:17.6]} 17... b5 {[%clk 0:02:07.3]}
18. Nf6+ {[%clk 0:02:05.9]} 18... Qxf6 {[%clk 0:02:05.7]} 19. Bxa8 {[%clk
0:02:07.8]} 19... Nc4 {[%clk 0:02:03.9]} 20. Rc2 {[%clk 0:01:47.7]} 20... e5
{[%clk 0:01:57.3]} 21. Bd5 {[%clk 0:01:34.5]} 21... Bg4 {[%clk 0:01:56.5]} 22.
Re1 {[%clk 0:01:31.8]} 22... Be6 {[%clk 0:01:25]} 23. Bxe6 {[%clk 0:01:28.5]}
23... Qxe6 {[%clk 0:01:26.9]} 24. a4 {[%clk 0:01:25.3]} 24... Rb8 {[%clk
0:01:20.7]} 25. axb5 {[%clk 0:01:24.8]} 25... axb5 {[%clk 0:01:22.6]} 26. Qc3
{[%clk 0:01:24.2]} 26... h6 {[%clk 0:01:13.4]} 27. b3 {[%clk 0:01:21.5]} 27...
Na3 {[%clk 0:01:14.6]} 28. Rce2 {[%clk 0:01:17.8]} 28... b4 {[%clk 0:00:16]} 29.
Qxe5 {[%clk 0:01:17]} 29... Qxe5 {[%clk 0:00:17.3]} 30. Rxe5 {[%clk 0:01:16.8]}
30... Kh7 {[%clk 0:00:19.2]} 31. Re7 {[%clk 0:01:07.7]} 31... Nc2 {[%clk
0:00:16.3]} 32. R1e4 {[%clk 0:01:04]} 32... Kg6 {[%clk 0:00:13.4]} 33. Rc7
{[%clk 0:01:03.1]} 33... Na3 {[%clk 0:00:11.6]} 34. Rg4+ {[%clk 0:01:03.1]}
34... Kf6 {[%clk 0:00:10.8]} 35. Rf4+ {[%clk 0:01:03.7]} 35... Kg6 {[%clk
0:00:11.4]} 36. Rfxf7 {[%clk 0:01:04.1]} 1-0